Workbook

Sheet Data
A1: Notation & Variables: | H1: GLM Bootstrap (Framework): | P1: ODP Bootstrap (Simplified GLM):
A3: Cumulative Data | H3: Cumulative Data | P3: Fitted Cumulative Data
B4: 1 | C4: 2 | D4: 3 | I4: 1 | J4: 2 | K4: 3 | Q4: 1 | R4: 2 | S4: 3
A5: 1 | B5: c(1,1) | C5: c(1,2) | D5: c(1,3) | H5: 1 | I5: 95 | J5: 150 | K5: 180 | P5: 1 | Q5: =R5/J8 -> 101.6129032 | R5: =S5/K8 -> 150 | S5: =K5 -> 180
A6: 2 | B6: c(2,1) | C6: c(2,2) | H6: 2 | I6: 115 | J6: 160 | P6: 2 | Q6: =R6/J8 -> 108.3870968 | R6: =J6 -> 160
A7: 3 | B7: c(3,1) | H7: 3 | I7: 105 | P7: 3 | Q7: =I7 -> 105
I8: Factors: | J8: =SUM(J5:J6)/SUM(I5:I6) -> 1.476190476 | K8: =K5/J5 -> 1.2
A9: Incremental Data | H9: Incremental Data | P9: Fitted Incremental Data
B10: 1 | C10: 2 | D10: 3 | I10: 1 | J10: 2 | K10: 3 | Q10: 1 | R10: 2 | S10: 3
A11: 1 | B11: q(1,1) | C11: q(1,2) | D11: q(1,3) | H11: 1 | I11: =I5 -> 95 | J11: =J5-I5 -> 55 | K11: =K5-J5 -> 30 | P11: 1 | Q11: =Q5 -> 101.6129032 | R11: =R5-Q5 -> 48.38709677 | S11: =S5-R5 -> 30
A12: 2 | B12: q(2,1) | C12: q(2,2) | H12: 2 | I12: =I6 -> 115 | J12: =J6-I6 -> 45 | P12: 2 | Q12: =Q6 -> 108.3870968 | R12: =R6-Q6 -> 51.61290323
A13: 3 | B13: q(3,1) | H13: 3 | I13: =I7 -> 105 | P13: 3 | Q13: =Q7 -> 105
A15: Log-Link of Incremental Data | H15: Log-Link of Incremental Data
B16: 1 | C16: 2 | D16: 3 | I16: 1 | J16: 2 | K16: 3
A17: 1 | B17: ln[q(1,1)] | C17: ln[q(1,2)] | D17: ln[q(1,3)] | H17: 1 | I17: =LN(I11) -> 4.553876892 | J17: =LN(J11) -> 4.007333185 | K17: =LN(K11) -> 3.401197382
A18: 2 | B18: ln[q(2,1)] | C18: ln[q(2,2)] | H18: 2 | I18: =LN(I12) -> 4.744932128 | J18: =LN(J12) -> 3.80666249
A19: 3 | B19: ln[q(3,1)] | H19: 3 | I19: =LN(I13) -> 4.65396035
Q21: Model Parameters from Maximum Likelihood
A22: Design Matrix | I22: α1 | J22: α2 | K22: α3 | L22: β2 | M22: β3 | O22: X x A | R22: Actual | T22: Estimate | U22: Loglikelihood | X22: Maximum Likelihood Steps:
A23: X | B23: 1 | C23: 0 | D23: 0 | E23: 0 | F23: 0 | H23: A | I23: 4.621165738 | J23: 4.685704637 | K23: 4.653957176 | L23: -0.7419330171 | M23: -0.4780353465 | O23: =SUMPRODUCT(B23:F23,$I$23:$M$23) -> 4.621165738 | Q23: q(1,1) | R23: =I11 -> 95 | S23: m1,1 | T23: =EXP(O23) -> 101.6124166 | U23: =IF($F$32=0,-(((R23-T23)^2)/2)-0.5*LN(2*PI()),IF($F$32=1,-T23+LN(T23)*R23-GAMMALN(R23+1),IF($F$32=2,-LN(T23)-R23/T23,-0.5*(LN(2*PI())+3*LN(R23))-(R23-T23)^2/(2*T23^2*R23)))) -> -3.416730329 | W23: 1) | X23: Enter Starting Values for vector A (Row 23)
B24: 0 | C24: 1 | D24: 0 | E24: 0 | F24: 0 | O24: =SUMPRODUCT(B24:F24,$I$23:$M$23) -> 4.685704637 | Q24: q(2,1) | R24: =I12 -> 115 | S24: m2,1 | T24: 108.3866186 | U24: =IF($F$32=0,-(((R24-T24)^2)/2)-0.5*LN(2*PI()),IF($F$32=1,-T24+LN(T24)*R24-GAMMALN(R24+1),IF($F$32=2,-LN(T24)-R24/T24,-0.5*(LN(2*PI())+3*LN(R24))-(R24-T24)^2/(2*T24^2*R24)))) -> -3.489909368 | W24: 2) | X24: Use Solver to Maximize Total Loglikelihood
B25: 0 | C25: 0 | D25: 1 | E25: 0 | F25: 0 | O25: 4.653957176 | Q25: q(3,1) | R25: =I13 -> 105 | S25: m3,1 | T25: 104.9996667 | U25: -3.246712357
B26: 1 | C26: 0 | D26: 0 | E26: 1 | F26: 0 | O26: 3.879232721 | Q26: q(1,2) | R26: =J11 -> 55 | S26: m1,2 | T26: 48.38707442 | U26: -3.356720234
B27: 0 | C27: 1 | D27: 0 | E27: 1 | F27: 0 | O27: 3.94377162 | Q27: q(2,2) | R27: =J12 -> 45 | S27: m2,2 | T27: 51.6128989 | U27: -3.267109642
B28: 1 | C28: 0 | D28: 0 | E28: 1 | F28: 1 | O28: 3.401197374 | Q28: q(1,3) | R28: =K11 -> 30 | S28: m1,3 | T28: 29.99999978 | U28: -2.622314899
A30: Model Parameters from Iteratively Weighted Least Squares | R30: =COUNTIF(R23:R28,"<>0") -> 6 | T30: Total | U30: =SUM(U23:U28) -> -19.39949683
B31: Value | C31: t-Stat | D31: p-Value | F31: Error Distribution
A32: α1 | B32: =Iteration!AL49 -> 4.621170527 | C32: =B32/SQRT($O$73*Iteration!W49) -> 31.73601706 | D32: =_xlfn.T.DIST.2T(ABS(C32),$O$72) -> 0.02005321593 | E32: z = | F32: 1 | AH32: 0 | AI32: Normal
A33: α2 | B33: =Iteration!AL50 -> 4.685709048 | C33: =(B33-B32)/SQRT($O$73*Iteration!X50) -> 0.4549248162 | D33: =_xlfn.T.DIST.2T(ABS(C33),$O$72) -> 0.7282003762 | F33: =VLOOKUP(F32,ErrorTable,2) -> Poisson | AH33: 1 | AI33: Poisson
A34: α3 | B34: =Iteration!AL51 -> 4.65396035 | C34: =(B34-B32)/SQRT($O$73*Iteration!Y51) -> 0.2089845978 | D34: 0.8688439245 | AH34: 2 | AI34: Gamma
A35: β2 | B35: =Iteration!AL52 -> -0.7419373447 | C35: =B35/SQRT($O$73*Iteration!Z52) -> -3.798189179 | D35: 0.1638920616 | AH35: 3 | AI35: Inverse Gaussian
A36: β3 | B36: =Iteration!AL53 -> -0.4780358009 | C36: =B36/SQRT($O$73*Iteration!AA53) -> -1.374794636 | D36: 0.4003493817
A41: Log-Link of Fitted Values | H41: Log-Link of Fitted Values
B42: 1 | C42: 2 | D42: 3 | I42: 1 | J42: 2 | K42: 3
A43: 1 | B43: ln[m1,1] | C43: ln[m1,2] | D43: ln[m1,3] | H43: 1 | I43: =B32 -> 4.621170527 | J43: =B32+B35 -> 3.879233183 | K43: =B32+B35+B36 -> 3.401197382
A44: 2 | B44: ln[m2,1] | C44: ln[m2,2] | H44: 2 | I44: =B33 -> 4.685709048 | J44: =B33+B35 -> 3.943771704
A45: 3 | B45: ln[m3,1] | H45: 3 | I45: =B34 -> 4.65396035
A47: Fitted Incremental Values | H47: Fitted Incremental Values
B48: 1 | C48: 2 | D48: 3 | I48: 1 | J48: 2 | K48: 3
A49: 1 | B49: m1,1 | C49: m1,2 | D49: m1,3 | H49: 1 | I49: =EXP(I43) -> 101.6129032 | J49: =EXP(J43) -> 48.38709677 | K49: =EXP(K43) -> 30
A50: 2 | B50: m2,1 | C50: m2,2 | H50: 2 | I50: =EXP(I44) -> 108.3870968 | J50: =EXP(J44) -> 51.61290323
A51: 3 | B51: m3,1 | H51: 3 | I51: =EXP(I45) -> 105
A53: Unscaled Pearson Residuals | H53: Unscaled Pearson Residuals | P53: Unscaled Pearson Residuals
B54: 1 | C54: 2 | D54: 3 | I54: 1 | J54: 2 | K54: 3 | Q54: 1 | R54: 2 | S54: 3
A55: 1 | B55: r1,1 | C55: r1,2 | D55: r1,3 | H55: 1 | I55: =(I11-I49)/SQRT(I49^$F$32) -> -0.656020993 | J55: =(J11-J49)/SQRT(J49^$F$32) -> 0.9506647363 | K55: =(K11-K49)/SQRT(K49^$F$32) -> 7.134971882e-15 | P55: 1 | Q55: =(I11-Q11)/SQRT(Q11) -> -0.656020993 | R55: =(J11-R11)/SQRT(R11) -> 0.9506647363 | S55: =(K11-S11)/SQRT(S11) -> 0
A56: 2 | B56: r2,1 | C56: r2,2 | H56: 2 | I56: =(I12-I50)/SQRT(I50^$F$32) -> 0.6351895952 | J56: =(J12-J50)/SQRT(J50^$F$32) -> -0.9204771729 | P56: 2 | Q56: =(I12-Q12)/SQRT(Q12) -> 0.6351895952 | R56: =(J12-R12)/SQRT(R12) -> -0.9204771729
A57: 3 | B57: r3,1 | H57: 3 | I57: =(I13-I51)/SQRT(I51^$F$32) -> 2.773674831e-15 | P57: 3 | Q57: =(I13-Q13)/SQRT(Q13) -> 0
H59: Hat Matrix Factors
I60: 1 | J60: 2 | K60: 3
H61: 1 | I61: ='Hat Matrix'!A20 -> 2.450765187 | J61: ='Hat Matrix'!D23 -> 1.691188649 | K61: ='Hat Matrix'!F25 -> 0
H62: 2 | I62: ='Hat Matrix'!B21 -> 2.531139401 | J62: ='Hat Matrix'!E24 -> 1.746652126
H63: 3 | I63: ='Hat Matrix'!C22 -> 0
H65: Standardized Pearson residuals
I66: 1 | J66: 2 | K66: 3
H67: 1 | I67: =I55*I61 -> -1.607753411 | J67: =J55*J61 -> 1.607753411 | K67: =K55*K61 -> 0
H68: 2 | I68: =I56*I62 -> 1.607753411 | J68: =J56*J62 -> -1.607753411
H69: 3 | I69: =I57*I63 -> 0
H71: Pearson chi-squared statistic | O71: =SUMSQ(I55:K57) -> 2.584871032
H72: Degrees of freedom | K72: =COUNT(I11:K13) -> 6 | L72: - | M72: =COUNT(B32:B36) -> 5 | N72: = | O72: =K72-M72 -> 1
H73: Scale Parameter | O73: =O71/O72 -> 2.584871032
H74: Degrees of Freedom Adjustment Factor | O74: =SQRT(K72/O72) -> 2.449489743
H76: Random selections
I77: 1 | J77: 2 | K77: 3 | P77: Residual Lookup Table
H78: 1 | I78: =RANDBETWEEN(1,4) -> 2 | J78: =RANDBETWEEN(1,4) -> 3 | K78: =RANDBETWEEN(1,4) -> 1 | M78: Recalc will change all values | P78: 1 | Q78: =I67 -> -1.607753411 | R78: =Q78 -> -1.607753411
H79: 2 | I79: =RANDBETWEEN(1,4) -> 2 | J79: =RANDBETWEEN(1,4) -> 1 | M79: from this step forward | P79: 2 | Q79: =I68 -> 1.607753411 | R79: =Q79 -> 1.607753411
H80: 3 | I80: =RANDBETWEEN(1,4) -> 4 | P80: 3 | Q80: =I69 -> 0 | R80: =Q81 -> 1.607753411
P81: 4 | Q81: =J67 -> 1.607753411 | R81: =Q82 -> -1.607753411
H82: Random Residuals | P82: 5 | Q82: =J68 -> -1.607753411
I83: 1 | J83: 2 | K83: 3 | P83: 6 | Q83: =K67 -> 0
H84: 1 | I84: =VLOOKUP(I78,$P$78:$R$81,3) -> 1.607753411 | J84: =VLOOKUP(J78,$P$78:$R$81,3) -> 1.607753411 | K84: =VLOOKUP(K78,$P$78:$R$81,3) -> -1.607753411
H85: 2 | I85: =VLOOKUP(I79,$P$78:$R$81,3) -> 1.607753411 | J85: =VLOOKUP(J79,$P$78:$R$81,3) -> -1.607753411
H86: 3 | I86: =VLOOKUP(I80,$P$78:$R$81,3) -> -1.607753411
A88: Sample Incremental Triangle | H88: Sample Incremental Triangle
B89: 1 | C89: 2 | D89: 3 | I89: 1 | J89: 2 | K89: 3
A90: 1 | B90: q'(1,1) | C90: q'(1,2) | D90: q'(1,3) | H90: 1 | I90: =I84*SQRT(I49^$F$32)+I49 -> 117.8195762 | J90: =J84*SQRT(J49^$F$32)+J49 -> 59.57076365 | K90: =K84*SQRT(K49^$F$32)+K49 -> 21.1939719
A91: 2 | B91: q'(2,1) | C91: q'(2,2) | H91: 2 | I91: =I85*SQRT(I50^$F$32)+I50 -> 125.1252767 | J91: =J85*SQRT(J50^$F$32)+J50 -> 40.06246174
A92: 3 | B92: q'(3,1) | H92: 3 | I92: =I86*SQRT(I51^$F$32)+I51 -> 88.52542995
A94: Sample Cumulative Data | H94: Sample Cumulative Data
B95: 1 | C95: 2 | D95: 3 | I95: 1 | J95: 2 | K95: 3
A96: 1 | B96: c'(1,1) | C96: c'(1,2) | D96: c'(1,3) | H96: 1 | I96: =I90 -> 117.8195762 | J96: =J90+I96 -> 177.3903399 | K96: =K90+J96 -> 198.5843118
A97: 2 | B97: c'(2,1) | C97: c'(2,2) | H97: 2 | I97: =I91 -> 125.1252767 | J97: =J91+I97 -> 165.1877384
A98: 3 | B98: c'(3,1) | H98: 3 | I98: =I92 -> 88.52542995
I99: Factors: | J99: =SUM(J96:J97)/SUM(I96:I97) -> 1.410106344 | K99: =K96/J96 -> 1.119476472
J100: =K100*J99 -> 1.578580874 | K100: =K99 -> 1.119476472
H102: Projected Cumulative Data
I103: 1 | J103: 2 | K103: 3
H104: 1 | I104: =I96 -> 117.8195762 | J104: =J96 -> 177.3903399 | K104: =K96 -> 198.5843118
H105: 2 | I105: =I97 -> 125.1252767 | J105: =J97 -> 165.1877384 | K105: =J105*K99 -> 184.9237866
H106: 3 | I106: =I98 -> 88.52542995 | J106: =I106*J99 -> 124.8302704 | K106: =J106*K99 -> 139.7445506
H108: Projected Incremental Data | M108: Point
I109: 1 | J109: 2 | K109: 3 | M109: Estimate
H110: 1
H111: 2 | K111: =K105-J105 -> 19.73604813 | M111: =J97*(K100-1) -> 19.73604813
H112: 3 | J112: =J106-I106 -> 36.30484042 | K112: =K106-J106 -> 14.91428025 | M112: =I98*(J100-1) -> 51.21912066
M113: =SUM(M111:M112) -> 70.95516879
H114: Random Values
I115: 1 | J115: 2 | K115: 3
H116: 1
H117: 2 | K117: =RAND() -> 0.429291895
H118: 3 | J118: =RAND() -> 0.9537739067 | K118: =RAND() -> 0.3874546065
H120: Incremental Data w/ Process Variance | M120: Possible
I121: 1 | J121: 2 | K121: 3 | M121: Outcome
H122: 1
H123: 2 | K123: =_xlfn.GAMMA.INV(K117,K111/$O$73,$O$73) -> 17.66855356 | M123: =K123 -> 17.66855356
H124: 3 | J124: =_xlfn.GAMMA.INV(J118,J112/$O$73,$O$73) -> 54.04233852 | K124: =_xlfn.GAMMA.INV(K118,K112/$O$73,$O$73) -> 12.41633103 | M124: =SUM(J124:K124) -> 66.45866955
M125: =SUM(M123:M124) -> 84.12722311

Sheet Iteration
A1: Iterative Estimation of Sample Data Parameters | G1: rho = | H1: =Data!F32 -> 1 | J1: parameters = | K1: =2*3-1 -> 5
A2: Iteratively Weighted Least Squares -- Iteration 1
B3: y(i) | D3: xb(i) | F3: W(i,i) | M3: xwx | S3: zz(i) | U3: factor | W3: xwx-1 | AC3: aa1(i,j) | AJ3: aa2(j) | AL3: beta(j) | AN3: beta_diff = | AO3: =SUM(AN5:AN9) -> 2.548592379 | AP3: beta_old = | AQ3: =SUM(AL5:AL9) -> 12.7429619
B4: 1 | D4: 1 | F4: 1 | G4: 2 | H4: 3 | I4: 4 | J4: 5 | K4: 6 | M4: 1 | N4: 2 | O4: 3 | P4: 4 | Q4: 5 | S4: 1 | W4: 1 | X4: 2 | Y4: 3 | Z4: 4 | AA4: 5 | AC4: 1 | AD4: 2 | AE4: 3 | AF4: 4 | AG4: 5 | AH4: 6 | AJ4: 1 | AL4: 1 | AN4: 1
A5: 1 | B5: =Data!I11 -> 95 | D5: =IF(B5<0,-LN(-B5),LN(B5)) -> 4.553876892 | F5: =IF($A5=F$4,IF($B5<0,-(EXP(-$D5)^(2-$H$1)),IF($B5=0,0,EXP($D5)^(2-$H$1))),0) -> 95 | G5: 0 | H5: 0 | I5: 0 | J5: 0 | K5: 0 | M5: =MMULT(TRANSPOSE(DesignMatrix),MMULT(F5:K10,DesignMatrix)) -> 180 | N5: 0 | O5: 0 | P5: 85 | Q5: 30 | S5: =IF(B5<0,D5+(B5+EXP(-D5))/-EXP(-D5),IF(B5=0,0,D5+(B5-EXP(D5))/EXP(D5))) -> 4.553876892 | U5: =OFFSET(L4,A5,A5) -> 180 | W5: =MINVERSE(M5:Q9) -> 0.008668010544 | X5: 0.001535121724 | Y5: 0 | Z5: -0.005458210575 | AA5: -0.003209799969 | AC5: =MMULT(W5:AA9,TRANSPOSE(DesignMatrix)) -> 0.008668010544 | AD5: 0.001535121724 | AE5: 0 | AF5: 0.003209799969 | AG5: -0.003923088851 | AH5: 8.67361738e-19 | AJ5: =MMULT(F5:K10,S5:S10) -> 432.6183047 | AL5: =MMULT(AC5:AH9,AJ5:AJ10) -> 4.623031795 | AN5: =AL5/$K$1 -> 0.9246063591
A6: 2 | B6: =Data!I12 -> 115 | D6: 4.744932128 | F6: 0 | G6: 115 | H6: 0 | I6: 0 | J6: 0 | K6: 0 | M6: 0 | N6: 160 | O6: 0 | P6: 45 | Q6: 0 | S6: 4.744932128 | U6: =OFFSET(L4,A6,A6) -> 160 | W6: 0.001535121724 | X6: 0.007427508141 | Y6: 0 | Z6: -0.004186695612 | AA6: 0.002651573887 | AC6: 0.001535121724 | AD6: 0.007427508141 | AE6: 0 | AF6: -0.002651573887 | AG6: 0.003240812529 | AH6: 0 | AJ6: 545.6671948 | AL6: 4.687804164 | AN6: =AL6/$K$1 -> 0.9375608329
A7: 3 | B7: =Data!I13 -> 105 | D7: 4.65396035 | F7: 0 | G7: 0 | H7: 105 | I7: 0 | J7: 0 | K7: 0 | M7: 0 | N7: 0 | O7: 105 | P7: 0 | Q7: 0 | S7: 4.65396035 | U7: =OFFSET(L4,A7,A7) -> 105 | W7: 0 | X7: 0 | Y7: 0.009523809524 | Z7: 0 | AA7: 0 | AC7: 0 | AD7: 0 | AE7: 0.009523809524 | AF7: 0 | AG7: 0 | AH7: 0 | AJ7: 488.6658368 | AL7: 4.65396035 | AN7: =AL7/$K$1 -> 0.93079207
A8: 4 | B8: =Data!J11 -> 55 | D8: 4.007333185 | F8: 0 | G8: 0 | H8: 0 | I8: 55 | J8: 0 | K8: 0 | M8: 85 | N8: 45 | O8: 0 | P8: 130 | Q8: 30 | S8: 4.007333185 | U8: =OFFSET(L4,A8,A8) -> 130 | W8: -0.005458210575 | X8: -0.004186695612 | Y8: 0 | Z8: 0.01488602884 | AA8: -0.009427818266 | AC8: -0.005458210575 | AD8: -0.004186695612 | AE8: 0 | AF8: 0.009427818266 | AG8: 0.01069933323 | AH8: 0 | AJ8: 220.4033252 | AL8: -0.7351479891 | AN8: =AL8/$K$1 -> -0.1470295978
A9: 5 | B9: =Data!J12 -> 45 | D9: 3.80666249 | F9: 0 | G9: 0 | H9: 0 | I9: 0 | J9: 45 | K9: 0 | M9: 30 | N9: 0 | O9: 0 | P9: 30 | Q9: 30 | S9: 3.80666249 | U9: =OFFSET(L4,A9,A9) -> 30 | W9: -0.003209799969 | X9: 0.002651573887 | Y9: 0 | Z9: -0.009427818266 | AA9: 0.04597095157 | AC9: -0.003209799969 | AD9: 0.002651573887 | AE9: 0 | AF9: -0.01263761824 | AG9: -0.006776244379 | AH9: 0.03333333333 | AJ9: 171.299812 | AL9: -0.4866864245 | AN9: =AL9/$K$1 -> -0.0973372849
A10: 6 | B10: =Data!K11 -> 30 | D10: 3.401197382 | F10: 0 | G10: 0 | H10: 0 | I10: 0 | J10: 0 | K10: 30 | S10: 3.401197382 | AJ10: 102.0359214
A13: Iteratively Weighted Least Squares -- Iteration 2
B14: y(i) | D14: xb(i) | F14: W(i,i) | M14: xwx | S14: zz(i) | U14: factor | W14: xwx-1 | AC14: aa1 | AJ14: aa2 | AL14: beta | AN14: beta_diff = | AO14: =SUM(AN16:AN20) -> -0.002092675163 | AP14: beta_old = | AQ14: =SUM(AL16:AL20) -> 12.74086922
B15: 1 | D15: 1 | F15: 1 | G15: 2 | H15: 3 | I15: 4 | J15: 5 | K15: 6 | M15: 1 | N15: 2 | O15: 3 | P15: 4 | Q15: 5 | S15: 1 | W15: 1 | X15: 2 | Y15: 3 | Z15: 4 | AA15: 5 | AC15: 1 | AD15: 2 | AE15: 3 | AF15: 4 | AG15: 5 | AH15: 6 | AJ15: 1 | AL15: 1 | AN15: 1
A16: 1 | B16: =B5 -> 95 | D16: =MMULT(DesignMatrix,AL5:AL9) -> 4.623031795 | F16: =IF($A16=F$4,EXP($D16)^(2-$H$1),0) -> 101.8022082 | G16: 0 | H16: 0 | I16: 0 | J16: 0 | K16: 0 | M16: =MMULT(TRANSPOSE(DesignMatrix),MMULT(F16:K21,DesignMatrix)) -> 180.6096992 | N16: 0 | O16: 0 | P16: 78.80749105 | Q16: 30 | S16: =IF(D16=0,0,D16+(B16-EXP(D16))/EXP(D16)) -> 4.556213911 | U16: =OFFSET(L15,A16,A16) -> 180.6096992 | W16: =MINVERSE(M16:Q20) -> 0.008179794818 | X16: 0.001540116198 | Y16: 0 | Z16: -0.004752476154 | AA16: -0.003427318664 | AC16: =MMULT(W16:AA20,TRANSPOSE(DesignMatrix)) -> 0.008179794818 | AD16: 0.001540116198 | AE16: 0 | AF16: 0.003427318664 | AG16: -0.003212359956 | AH16: 1.301042607e-18 | AJ16: =MMULT(F16:K21,S16:S21) -> 463.8326371 | AL16: =MMULT(AC16:AH20,AJ16:AJ21) -> 4.621171994 | AN16: =AL16-AQ3/$K$1 -> 2.072579615
A17: 2 | B17: 115 | D17: 4.687804164 | F17: 0 | G17: 108.6144184 | H17: 0 | I17: 0 | J17: 0 | K17: 0 | M17: 0 | N17: 160.687918 | O17: 0 | P17: 52.07349965 | Q17: 0 | S17: 4.746595453 | U17: =OFFSET(L15,A17,A17) -> 160.687918 | W17: 0.001540116198 | X17: 0.007763359441 | Y17: 0 | Z17: -0.004752476154 | AA17: 0.003212359956 | AC17: 0.001540116198 | AD17: 0.007763359441 | AE17: 0 | AF17: -0.003212359956 | AG17: 0.003010883287 | AH17: 4.33680869e-19 | AJ17: 515.5487044 | AL17: 4.685711489 | AN17: =AL17-AQ3/$K$1 -> 2.13711911
A18: 3 | B18: 105 | D18: 4.65396035 | F18: 0 | G18: 0 | H18: 105 | I18: 0 | J18: 0 | K18: 0 | M18: 0 | N18: 0 | O18: 105 | P18: 0 | Q18: 0 | S18: 4.65396035 | U18: =OFFSET(L15,A18,A18) -> 105 | W18: 0 | X18: 0 | Y18: 0.009523809524 | Z18: 0 | AA18: 0 | AC18: 0 | AD18: 0 | AE18: 0.009523809524 | AF18: 0 | AG18: 0 | AH18: 0 | AJ18: 488.6658368 | AL18: 4.65396035 | AN18: =AL18-AQ3/$K$1 -> 2.105367971
A19: 4 | B19: 55 | D19: 3.887883806 | F19: 0 | G19: 0 | H19: 0 | I19: 48.80749105 | J19: 0 | K19: 0 | M19: 78.80749105 | N19: 52.07349965 | O19: 0 | P19: 130.8809907 | Q19: 30 | S19: 4.014760005 | U19: =OFFSET(L15,A19,A19) -> 130.8809907 | W19: -0.004752476154 | X19: -0.004752476154 | Y19: 0 | Z19: 0.01466514645 | AA19: -0.009912670297 | AC19: -0.004752476154 | AD19: -0.004752476154 | AE19: 0 | AF19: 0.009912670297 | AG19: 0.009912670297 | AH19: -1.734723476e-18 | AJ19: 195.950363 | AL19: -0.7419009517 | AN19: =AL19-AQ3/$K$1 -> -3.290493331
A20: 5 | B20: 45 | D20: 3.952656175 | F20: 0 | G20: 0 | H20: 0 | I20: 0 | J20: 52.07349965 | K20: 0 | M20: 30 | N20: 0 | O20: 0 | P20: 30 | Q20: 30 | S20: 3.816819335 | U20: =OFFSET(L15,A20,A20) -> 30 | W20: -0.003427318664 | X20: 0.003212359956 | Y20: 0 | Z20: -0.009912670297 | AA20: 0.04667332229 | AC20: -0.003427318664 | AD20: 0.003212359956 | AE20: 0 | AF20: -0.01333998896 | AG20: -0.006700310341 | AH20: 0.03333333333 | AJ20: 198.7551403 | AL20: -0.4780736609 | AN20: =AL20-AQ3/$K$1 -> -3.02666604
A21: 6 | B21: 30 | D21: 3.401197382 | F21: 0 | G21: 0 | H21: 0 | I21: 0 | J21: 0 | K21: 30 | S21: 3.401197382 | AJ21: 102.0359214
A24: Iteratively Weighted Least Squares -- Iteration 3
B25: y(i) | D25: xb(i) | F25: W(i,i) | M25: xwx | S25: zz(i) | U25: factor | W25: xwx-1 | AC25: aa1 | AJ25: aa2 | AL25: beta | AN25: beta_diff = | AO25: =SUM(AN27:AN31) -> -2.440809176e-06 | AP25: beta_old = | AQ25: =SUM(AL27:AL31) -> 12.74086678
B26: 1 | D26: 1 | F26: 1 | G26: 2 | H26: 3 | I26: 4 | J26: 5 | K26: 6 | M26: 1 | N26: 2 | O26: 3 | P26: 4 | Q26: 5 | S26: 1 | W26: 1 | X26: 2 | Y26: 3 | Z26: 4 | AA26: 5 | AC26: 1 | AD26: 2 | AE26: 3 | AF26: 4 | AG26: 5 | AH26: 6 | AJ26: 1 | AL26: 1 | AN26: 1
A27: 1 | B27: =B16 -> 95 | D27: =MMULT(DesignMatrix,AL16:AL20) -> 4.621171994 | F27: =IF($A27=F$4,EXP($D27)^(2-$H$1),0) -> 101.6130523 | G27: 0 | H27: 0 | I27: 0 | J27: 0 | K27: 0 | M27: =MMULT(TRANSPOSE(DesignMatrix),MMULT(F27:K32,DesignMatrix)) -> 180.001981 | N27: 0 | O27: 0 | P27: 78.38892874 | Q27: 30 | S27: =IF(D27=0,0,D27+(B27-EXP(D27))/EXP(D27)) -> 4.556091258 | U27: =OFFSET(L26,A27,A27) -> 180.001981 | W27: =MINVERSE(M27:Q31) -> 0.008202711777 | X27: 0.001536133155 | Y27: 0 | Z27: -0.004761895383 | AA27: -0.003440816394 | AC27: =MMULT(W27:AA31,TRANSPOSE(DesignMatrix)) -> 0.008202711777 | AD27: 0.001536133155 | AE27: 0 | AF27: 0.003440816394 | AG27: -0.003225762228 | AH27: -4.33680869e-19 | AJ27: =MMULT(F27:K32,S27:S32) -> 462.9583392 | AL27: =MMULT(AC27:AH31,AJ27:AJ32) -> 4.621170527 | AN27: =AL27-AQ14/$K$1 -> 2.072996683
A28: 2 | B28: 115 | D28: 4.685711489 | F28: 0 | G28: 108.3873613 | H28: 0 | I28: 0 | J28: 0 | K28: 0 | M28: 0 | N28: 160.0022689 | O28: 0 | P28: 51.61490759 | Q28: 0 | S28: 4.746720804 | U28: =OFFSET(L26,A28,A28) -> 160.0022689 | W28: 0.001536133155 | X28: 0.007786044527 | Y28: 0 | Z28: -0.004761895383 | AA28: 0.003225762228 | AC28: 0.001536133155 | AD28: 0.007786044527 | AE28: 0 | AF28: -0.003225762228 | AG28: 0.003024149144 | AH28: 0 | AJ28: 514.4845429 | AL28: 4.685709048 | AN28: =AL28-AQ14/$K$1 -> 2.137535204
A29: 3 | B29: 105 | D29: 4.65396035 | F29: 0 | G29: 0 | H29: 105 | I29: 0 | J29: 0 | K29: 0 | M29: 0 | N29: 0 | O29: 105 | P29: 0 | Q29: 0 | S29: 4.65396035 | U29: =OFFSET(L26,A29,A29) -> 105 | W29: 0 | X29: 0 | Y29: 0.009523809524 | Z29: 0 | AA29: 0 | AC29: 0 | AD29: 0 | AE29: 0.009523809524 | AF29: 0 | AG29: 0 | AH29: 0 | AJ29: 488.6658368 | AL29: 4.65396035 | AN29: =AL29-AQ14/$K$1 -> 2.105786506
A30: 4 | B30: 55 | D30: 3.879271043 | F30: 0 | G30: 0 | H30: 0 | I30: 48.38892874 | J30: 0 | K30: 0 | M30: 78.38892874 | N30: 51.61490759 | O30: 0 | P30: 130.0038363 | Q30: 30 | S30: 4.015894676 | U30: =OFFSET(L26,A30,A30) -> 130.0038363 | W30: -0.004761895383 | X30: -0.004761895383 | Y30: 0 | Z30: 0.01476151176 | AA30: -0.009999616381 | AC30: -0.004761895383 | AD30: -0.004761895383 | AE30: 0 | AF30: 0.009999616381 | AG30: 0.009999616381 | AH30: 1.734723476e-18 | AJ30: 194.3248413 | AL30: -0.741937344 | AN30: =AL30-AQ14/$K$1 -> -3.290111188
A31: 5 | B31: 45 | D31: 3.943810538 | F31: 0 | G31: 0 | H31: 0 | I31: 0 | J31: 51.61490759 | K31: 0 | M31: 30 | N31: 0 | O31: 0 | P31: 30 | Q31: 30 | S31: 3.81565168 | U31: =OFFSET(L26,A31,A31) -> 30 | W31: -0.003440816394 | X31: 0.003225762228 | Y31: 0 | Z31: -0.009999616381 | AA31: 0.04677376611 | AC31: -0.003440816394 | AD31: 0.003225762228 | AE31: 0 | AF31: -0.01344043278 | AG31: -0.006773854153 | AH31: 0.03333333333 | AJ31: 196.9445089 | AL31: -0.4780358017 | AN31: =AL31-AQ14/$K$1 -> -3.026209646
A32: 6 | B32: 30 | D32: 3.401197382 | F32: 0 | G32: 0 | H32: 0 | I32: 0 | J32: 0 | K32: 30 | S32: 3.401197382 | AJ32: 102.0359214
A35: Iteratively Weighted Least Squares -- Iteration 4
B36: y(i) | D36: xb(i) | F36: W(i,i) | M36: xwx | S36: zz(i) | U36: factor | W36: xwx-1 | AC36: aa1 | AJ36: aa2 | AL36: beta | AN36: beta_diff = | AO36: =SUM(AN38:AN42) -> -8.511857885e-12 | AP36: beta_old = | AQ36: =SUM(AL38:AL42) -> 12.74086678
B37: 1 | D37: 1 | F37: 1 | G37: 2 | H37: 3 | I37: 4 | J37: 5 | K37: 6 | M37: 1 | N37: 2 | O37: 3 | P37: 4 | Q37: 5 | S37: 1 | W37: 1 | X37: 2 | Y37: 3 | Z37: 4 | AA37: 5 | AC37: 1 | AD37: 2 | AE37: 3 | AF37: 4 | AG37: 5 | AH37: 6 | AJ37: 1 | AL37: 1 | AN37: 1
A38: 1 | B38: =B27 -> 95 | D38: =MMULT(DesignMatrix,AL27:AL31) -> 4.621170527 | F38: =IF($A38=F$4,EXP($D38)^(2-$H$1),0) -> 101.6129032 | G38: 0 | H38: 0 | I38: 0 | J38: 0 | K38: 0 | M38: =MMULT(TRANSPOSE(DesignMatrix),MMULT(F38:K43,DesignMatrix)) -> 180 | N38: 0 | O38: 0 | P38: 78.38709681 | Q38: 30 | S38: =IF(D38=0,0,D38+(B38-EXP(D38))/EXP(D38)) -> 4.556091162 | U38: =OFFSET(L37,A38,A38) -> 180 | W38: =MINVERSE(M38:Q42) -> 0.008202764976 | X38: 0.001536098311 | Y38: 0 | Z38: -0.004761904762 | AA38: -0.003440860214 | AC38: =MMULT(W38:AA42,TRANSPOSE(DesignMatrix)) -> 0.008202764976 | AD38: 0.001536098311 | AE38: 0 | AF38: 0.003440860214 | AG38: -0.003225806451 | AH38: -3.469446952e-18 | AJ38: =MMULT(F38:K43,S38:S43) -> 462.9576504 | AL38: =MMULT(AC38:AH42,AJ38:AJ43) -> 4.621170527 | AN38: =AL38-AQ25/$K$1 -> 2.072997171
A39: 2 | B39: 115 | D39: 4.685709048 | F39: 0 | G39: 108.3870968 | H39: 0 | I39: 0 | J39: 0 | K39: 0 | M39: 0 | N39: 160 | O39: 0 | P39: 51.61290326 | Q39: 0 | S39: 4.746720953 | U39: =OFFSET(L37,A39,A39) -> 160 | W39: 0.001536098311 | X39: 0.00778609831 | Y39: 0 | Z39: -0.004761904762 | AA39: 0.003225806451 | AC39: 0.001536098311 | AD39: 0.00778609831 | AE39: 0 | AF39: -0.003225806451 | AG39: 0.003024193548 | AH39: -1.301042607e-18 | AJ39: 514.4833033 | AL39: 4.685709048 | AN39: =AL39-AQ25/$K$1 -> 2.137535692
A40: 3 | B40: 105 | D40: 4.65396035 | F40: 0 | G40: 0 | H40: 105 | I40: 0 | J40: 0 | K40: 0 | M40: 0 | N40: 0 | O40: 105 | P40: 0 | Q40: 0 | S40: 4.65396035 | U40: =OFFSET(L37,A40,A40) -> 105 | W40: 0 | X40: 0 | Y40: 0.009523809524 | Z40: 0 | AA40: 0 | AC40: 0 | AD40: 0 | AE40: 0.009523809524 | AF40: 0 | AG40: 0 | AH40: 0 | AJ40: 488.6658368 | AL40: 4.65396035 | AN40: =AL40-AQ25/$K$1 -> 2.105786994
A41: 4 | B41: 55 | D41: 3.879233183 | F41: 0 | G41: 0 | H41: 0 | I41: 48.38709681 | J41: 0 | K41: 0 | M41: 78.38709681 | N41: 51.61290326 | O41: 0 | P41: 130.0000001 | Q41: 30 | S41: 4.015899849 | U41: =OFFSET(L37,A41,A41) -> 130.0000001 | W41: -0.004761904762 | X41: -0.004761904762 | Y41: 0 | Z41: 0.01476190475 | AA41: -0.009999999993 | AC41: -0.004761904762 | AD41: -0.004761904762 | AE41: 0 | AF41: 0.009999999993 | AG41: 0.009999999993 | AH41: 3.469446952e-18 | AJ41: 194.3177348 | AL41: -0.7419373447 | AN41: =AL41-AQ25/$K$1 -> -3.290110701
A42: 5 | B42: 45 | D42: 3.943771704 | F42: 0 | G42: 0 | H42: 0 | I42: 0 | J42: 51.61290326 | K42: 0 | M42: 30 | N42: 0 | O42: 0 | P42: 30 | Q42: 30 | S42: 3.815646704 | U42: =OFFSET(L37,A42,A42) -> 30 | W42: -0.003440860214 | X42: 0.003225806451 | Y42: 0 | Z42: -0.009999999993 | AA42: 0.04677419354 | AC42: -0.003440860214 | AD42: 0.003225806451 | AE42: 0 | AF42: -0.01344086021 | AG42: -0.006774193542 | AH42: 0.03333333333 | AJ42: 196.9366042 | AL42: -0.4780358009 | AN42: =AL42-AQ25/$K$1 -> -3.026209157
A43: 6 | B43: 30 | D43: 3.401197382 | F43: 0 | G43: 0 | H43: 0 | I43: 0 | J43: 0 | K43: 30 | S43: 3.401197382 | AJ43: 102.0359214
A46: Iteratively Weighted Least Squares -- Iteration 5
B47: y(i) | D47: xb(i) | F47: W(i,i) | M47: xwx | S47: zz(i) | U47: factor | W47: xwx-1 | AC47: aa1 | AJ47: aa2 | AL47: beta | AN47: beta_diff = | AO47: =SUM(AN49:AN53) -> -5.329070518e-15 | AP47: beta_old = | AQ47: =SUM(AL49:AL53) -> 12.74086678
B48: 1 | D48: 1 | F48: 1 | G48: 2 | H48: 3 | I48: 4 | J48: 5 | K48: 6 | M48: 1 | N48: 2 | O48: 3 | P48: 4 | Q48: 5 | S48: 1 | W48: 1 | X48: 2 | Y48: 3 | Z48: 4 | AA48: 5 | AC48: 1 | AD48: 2 | AE48: 3 | AF48: 4 | AG48: 5 | AH48: 6 | AJ48: 1 | AL48: 1 | AN48: 1
A49: 1 | B49: =B38 -> 95 | D49: =MMULT(DesignMatrix,AL38:AL42) -> 4.621170527 | F49: =IF($A49=F$4,EXP($D49)^(2-$H$1),0) -> 101.6129032 | G49: 0 | H49: 0 | I49: 0 | J49: 0 | K49: 0 | M49: =MMULT(TRANSPOSE(DesignMatrix),MMULT(F49:K54,DesignMatrix)) -> 180 | N49: 0 | O49: 0 | P49: 78.38709677 | Q49: 30 | S49: =IF(D49=0,0,D49+(B49-EXP(D49))/EXP(D49)) -> 4.556091162 | U49: =OFFSET(L48,A49,A49) -> 180 | W49: =MINVERSE(M49:Q53) -> 0.008202764977 | X49: 0.00153609831 | Y49: 0 | Z49: -0.004761904762 | AA49: -0.003440860215 | AC49: =MMULT(W49:AA53,TRANSPOSE(DesignMatrix)) -> 0.008202764977 | AD49: 0.00153609831 | AE49: 0 | AF49: 0.003440860215 | AG49: -0.003225806452 | AH49: -1.734723476e-18 | AJ49: =MMULT(F49:K54,S49:S54) -> 462.9576504 | AL49: =MMULT(AC49:AH53,AJ49:AJ54) -> 4.621170527 | AN49: =AL49-AQ36/$K$1 -> 2.072997171
A50: 2 | B50: 115 | D50: 4.685709048 | F50: 0 | G50: 108.3870968 | H50: 0 | I50: 0 | J50: 0 | K50: 0 | M50: 0 | N50: 160 | O50: 0 | P50: 51.61290323 | Q50: 0 | S50: 4.746720953 | U50: =OFFSET(L48,A50,A50) -> 160 | W50: 0.00153609831 | X50: 0.00778609831 | Y50: 0 | Z50: -0.004761904762 | AA50: 0.003225806452 | AC50: 0.00153609831 | AD50: 0.00778609831 | AE50: 0 | AF50: -0.003225806452 | AG50: 0.003024193548 | AH50: 0 | AJ50: 514.4833033 | AL50: 4.685709048 | AN50: =AL50-AQ36/$K$1 -> 2.137535692
A51: 3 | B51: 105 | D51: 4.65396035 | F51: 0 | G51: 0 | H51: 105 | I51: 0 | J51: 0 | K51: 0 | M51: 0 | N51: 0 | O51: 105 | P51: 0 | Q51: 0 | S51: 4.65396035 | U51: =OFFSET(L48,A51,A51) -> 105 | W51: 0 | X51: 0 | Y51: 0.009523809524 | Z51: 0 | AA51: 0 | AC51: 0 | AD51: 0 | AE51: 0.009523809524 | AF51: 0 | AG51: 0 | AH51: 0 | AJ51: 488.6658368 | AL51: 4.65396035 | AN51: =AL51-AQ36/$K$1 -> 2.105786994
A52: 4 | B52: 55 | D52: 3.879233183 | F52: 0 | G52: 0 | H52: 0 | I52: 48.38709677 | J52: 0 | K52: 0 | M52: 78.38709677 | N52: 51.61290323 | O52: 0 | P52: 130 | Q52: 30 | S52: 4.015899849 | U52: =OFFSET(L48,A52,A52) -> 130 | W52: -0.004761904762 | X52: -0.004761904762 | Y52: 0 | Z52: 0.01476190476 | AA52: -0.01 | AC52: -0.004761904762 | AD52: -0.004761904762 | AE52: 0 | AF52: 0.01 | AG52: 0.01 | AH52: 1.734723476e-18 | AJ52: 194.3177346 | AL52: -0.7419373447 | AN52: =AL52-AQ36/$K$1 -> -3.290110701
A53: 5 | B53: 45 | D53: 3.943771704 | F53: 0 | G53: 0 | H53: 0 | I53: 0 | J53: 51.61290323 | K53: 0 | M53: 30 | N53: 0 | O53: 0 | P53: 30 | Q53: 30 | S53: 3.815646704 | U53: =OFFSET(L48,A53,A53) -> 30 | W53: -0.003440860215 | X53: 0.003225806452 | Y53: 0 | Z53: -0.01 | AA53: 0.04677419355 | AC53: -0.003440860215 | AD53: 0.003225806452 | AE53: 0 | AF53: -0.01344086022 | AG53: -0.006774193548 | AH53: 0.03333333333 | AJ53: 196.9366041 | AL53: -0.4780358009 | AN53: =AL53-AQ36/$K$1 -> -3.026209157
A54: 6 | B54: 30 | D54: 3.401197382 | F54: 0 | G54: 0 | H54: 0 | I54: 0 | J54: 0 | K54: 30 | S54: 3.401197382 | AJ54: 102.0359214

Sheet Hat Matrix
A1: Weight Matrix
A2: =Data!I49 -> 101.6129032 | B2: 0 | C2: 0 | D2: 0 | E2: 0 | F2: 0
A3: 0 | B3: =Data!I50 -> 108.3870968 | C3: 0 | D3: 0 | E3: 0 | F3: 0
A4: 0 | B4: 0 | C4: =Data!I51 -> 105 | D4: 0 | E4: 0 | F4: 0
A5: 0 | B5: 0 | C5: 0 | D5: =Data!J49 -> 48.38709677 | E5: 0 | F5: 0
A6: 0 | B6: 0 | C6: 0 | D6: 0 | E6: =Data!J50 -> 51.61290323 | F6: 0
A7: 0 | B7: 0 | C7: 0 | D7: 0 | E7: 0 | F7: =Data!K49 -> 30
A10: Hat Matrix
A11: =MMULT(MMULT(MMULT(DesignMatrix,MINVERSE(MMULT(MMULT(TRANSPOSE(DesignMatrix),WeightMatrix),DesignMatrix))),TRANSPOSE(DesignMatrix)),WeightMatrix) -> 0.8335067638 | B11: 0.1664932362 | C11: 0 | D11: 0.1664932362 | E11: -0.1664932362 | F11: -1.301042607e-17
A12: 0.1560874089 | B12: 0.8439125911 | C12: 0 | D12: -0.1560874089 | E12: 0.1560874089 | F12: -1.301042607e-17
A13: 0 | B13: 0 | C13: 1 | D13: 0 | E13: 0 | F13: 0
A14: 0.349635796 | B14: -0.349635796 | C14: 0 | D14: 0.650364204 | E14: 0.349635796 | F14: 1.040834086e-16
A15: -0.3277835588 | B15: 0.3277835588 | C15: 0 | D15: 0.3277835588 | E15: 0.6722164412 | F15: 5.204170428e-17
A16: 4.406757217e-17 | B16: -4.700541032e-17 | C16: 0 | D16: 2.098455818e-17 | E16: -2.238352872e-17 | F16: 1
A19: Hat Matrix Factors
A20: =IF(A11=1,0,1/SQRT(1-A11)) -> 2.450765187
B21: =IF(B12=1,0,1/SQRT(1-B12)) -> 2.531139401
C22: =IF(C13=1,0,1/SQRT(1-C13)) -> 0
D23: =IF(D14=1,0,1/SQRT(1-D14)) -> 1.691188649
E24: =IF(E15=1,0,1/SQRT(1-E15)) -> 1.746652126
F25: =IF(F16=1,0,1/SQRT(1-F16)) -> 0
